fUSD/lending_fUSD_20260507
["ID","MTS","AMOUNT","RATE_DAILY","PERIOD"]
[421745646,1778092247000,-150.0,0.00038573,7]
[421745648,1778092247000,-150.0,0.00038618,7]
[421745650,1778092247000,-1560.0,0.0003863,30]
[421745652,1778092247000,-171.32881372,0.00038634,120]
[421745660,1778092247000,-150.0,0.00038737,7]
[421745658,1778092247000,-150.0,0.00038707,7]
[421745654,1778092247000,-175.85429682,0.00038634,120]
[421745657,1778092247000,-150.0,0.00038663,7]
[421745639,1778092247000,-158.31004264,0.00038564,2]
[421745655,1778092247000,-150.0,0.00038649,7]
[421745656,1778092247000,-150.0,0.00038663,7]
[421745666,1778092247000,-500.0,0.00038791,30]
[421745670,1778092247000,-500.0,0.00038791,7]
[421745662,1778092247000,-150.0,0.0003877,7]
[421745673,1778092247000,-20107.2,0.000388,7]
[421745672,1778092247000,-150.0,0.00038797,7]
[421745669,1778092247000,-500.0,0.00038791,2]
[421745665,1778092247000,-1027.43622372,0.00038791,30]
[421745663,1778092247000,-151.0,0.00038789,14]
[421745664,1778092247000,-1078.6624077,0.00038791,30]
[421745661,1778092247000,-150.0,0.00038752,7]
[421745659,1778092247000,-332.99,0.00038726,7]
[421745667,1778092247000,-500.0,0.00038791,10]
[421745729,1778092248000,-2000.0,0.0003933,112]
[421745727,1778092248000,-150.0,0.00039292,7]
[421745726,1778092248000,-150.0,0.00039257,7]
[421745731,1778092248000,-150.0,0.00039364,7]
[421745735,1778092248000,-150.0,0.00039382,7]
[421745732,1778092248000,-335.95643909,0.0003937,2]
[421745734,1778092248000,-150.0,0.00039382,7]
[421745736,1778092248000,-200.0,0.00039389,2]
[421745737,1778092248000,-150.0,0.00039397,7]
[421745733,1778092248000,-2000.0,0.0003938,113]
[421745746,1778092248000,-1124.01238197,0.00039467,2]
[421745739,1778092248000,-3700.0,0.000394,14]
[421745743,1778092248000,-157.99482979,0.00039456,120]
[421745740,1778092248000,-4122.0,0.00039425,30]
[421745741,1778092248000,-150.0,0.00039427,7]
[421745742,1778092248000,-1560.0,0.00039452,30]
[421745745,1778092248000,-175.85429682,0.00039456,120]
[421745744,1778092248000,-171.32881372,0.00039456,120]
[421745748,1778092248000,-5715.60498306,0.00039467,2]
[421745730,1778092248000,-150.0,0.00039337,7]
[421745738,1778092248000,-20107.2,0.000394,7]
[421745728,1778092248000,-4122.0,0.00039328,30]
[421745712,1778092248000,-450.0,0.00039212,2]
[421745724,1778092248000,-150.0,0.00039232,7]
[421745747,1778092248000,-16345.031067,0.00039467,2]
[421745710,1778092248000,-450.0,0.00039212,2]
[421745704,1778092248000,-1560.0,0.00039178,30]
[421745703,1778092248000,-151.0,0.00039178,30]
[421745707,1778092248000,-150.0,0.00039202,7]
[421745708,1778092248000,-150.0,0.00039202,7]
[421745706,1778092248000,-175.85429682,0.00039182,120]
[421745709,1778092248000,-500.0,0.00039212,7]
[421745705,1778092248000,-171.32881372,0.00039182,120]
[421745711,1778092248000,-450.0,0.00039212,2]
[421745713,1778092248000,-450.0,0.00039212,2]
[421745721,1778092248000,-150.0,0.00039219,2]
[421745716,1778092248000,-450.0,0.00039212,2]
[421745715,1778092248000,-450.0,0.00039212,2]
[421745717,1778092248000,-450.0,0.00039212,2]
[421745714,1778092248000,-450.0,0.00039212,2]
[421745719,1778092248000,-382.0,0.00039212,2]
[421745718,1778092248000,-450.0,0.00039212,2]
[421745720,1778092248000,-150.0,0.00039219,2]
[421745722,1778092248000,-246.0,0.00039219,2]
[421745723,1778092248000,-4122.0,0.00039231,30]
[421745725,1778092248000,-150.0,0.00039247,7]
[421745750,1778092248000,-193.83936604,0.00039467,14]
[421745788,1778092248000,-500.0,0.00039566,7]
[421745749,1778092248000,-254.89532827,0.00039467,2]
[421745778,1778092248000,-1000.0,0.00039566,2]
[421745777,1778092248000,-300.0,0.00039566,10]
[421745781,1778092248000,-500.0,0.00039566,7]
[421745779,1778092248000,-1000.0,0.00039566,2]
[421745783,1778092248000,-500.0,0.00039566,7]
[421745782,1778092248000,-500.0,0.00039566,7]
[421745780,1778092248000,-416.1062653,0.00039566,2]
[421745784,1778092248000,-500.0,0.00039566,7]
[421745785,1778092248000,-500.0,0.00039566,7]
[421745787,1778092248000,-500.0,0.00039566,7]
[421745797,1778092248000,-339.475792,0.00039566,7]
[421745786,1778092248000,-500.0,0.00039566,7]
[421745789,1778092248000,-500.0,0.00039566,7]
[421745790,1778092248000,-500.0,0.00039566,7]
[421745791,1778092248000,-500.0,0.00039566,7]
[421745793,1778092248000,-500.0,0.00039566,7]
[421745795,1778092248000,-339.475792,0.00039566,7]
[421745792,1778092248000,-500.0,0.00039566,7]
[421745796,1778092248000,-576.868275,0.00039566,30]
[421745798,1778092248000,-576.868275,0.00039566,30]
[421745752,1778092248000,-150.0,0.00039472,7]
[421745772,1778092248000,-161.73486169,0.00039562,7]
[421745774,1778092248000,-174.74826003,0.00039562,7]
[421745794,1778092248000,-576.868275,0.00039566,30]
[421745775,1778092248000,-153.76515706,0.00039562,7]
[421745773,1778092248000,-158.91744415,0.00039562,7]
[421745754,1778092248000,-500.0,0.00039496,30]
[421745753,1778092248000,-1182.237846,0.00039479,2]
[421745751,1778092248000,-280.70484864,0.00039467,8]
[421745756,1778092248000,-189.83929851,0.00039496,120]
[421745757,1778092248000,-4900.0,0.000395,14]
[421745758,1778092248000,-5118.01986841,0.000395,120]
[421745759,1778092248000,-4003.0,0.00039507,120]
[421745760,1778092248000,-260.0,0.00039507,120]
[421745761,1778092248000,-150.0,0.00039517,7]
[421745755,1778092248000,-500.0,0.00039496,7]
[421745763,1778092248000,-1971.0,0.00039534,120]
[421745764,1778092248000,-151.0,0.00039557,14]
[421745767,1778092248000,-457.26723297,0.00039559,10]
[421745776,1778092248000,-187.52381098,0.00039562,7]
[421745769,1778092248000,-335.95643909,0.0003956,2]
[421745770,1778092248000,-150.00000002,0.00039562,30]
[421745771,1778092248000,-151.86465196,0.00039562,7]
[421745766,1778092248000,-500.0,0.00039559,10]
[421745765,1778092248000,-500.0,0.00039559,10]
[421745762,1778092248000,-4122.0,0.00039522,30]
[421745768,1778092248000,-150.0,0.00039559,120]
[421745818,1778092249000,-151.0,0.00039567,10]
[421745829,1778092249000,-151.0,0.00039567,30]
[421745819,1778092249000,-151.0,0.00039567,10]
[421745820,1778092249000,-153.405141,0.00039567,30]
[421745821,1778092249000,-151.0,0.00039567,30]
[421745824,1778092249000,-151.0,0.00039567,30]
[421745830,1778092249000,-518.442607,0.00039567,30]
[421745822,1778092249000,-151.0,0.00039567,30]
[421745826,1778092249000,-151.0,0.00039567,30]
[421745825,1778092249000,-151.0,0.00039567,30]
[421745827,1778092249000,-151.0,0.00039567,30]
[421745831,1778092249000,-252.850379,0.00039567,30]
[421745832,1778092249000,-518.442607,0.00039567,30]
[421745834,1778092249000,-518.442607,0.00039567,30]
[421745823,1778092249000,-151.0,0.00039567,30]
[421745835,1778092249000,-252.850379,0.00039567,30]
[421745828,1778092249000,-151.0,0.00039567,30]
[421745817,1778092249000,-151.0,0.00039567,10]
[421745806,1778092249000,-786.09393319,0.00039567,2]
[421745816,1778092249000,-151.0,0.00039567,30]
[421745833,1778092249000,-252.850379,0.00039567,30]
[421745800,1778092249000,-576.868275,0.00039566,30]
[421745799,1778092249000,-339.475792,0.00039566,7]
[421745801,1778092249000,-339.475792,0.00039566,7]
[421745803,1778092249000,-991.036506,0.00039566,28]
[421745802,1778092249000,-991.036506,0.00039566,28]
[421745805,1778092249000,-991.036506,0.00039566,28]
[421745814,1778092249000,-151.0,0.00039567,30]
[421745804,1778092249000,-991.036506,0.00039566,28]
[421745807,1778092249000,-39509.45339531,0.00039567,2]
[421745811,1778092249000,-162.383069,0.00039567,30]
[421745809,1778092249000,-151.0,0.00039567,30]
[421745808,1778092249000,-13558.67649185,0.00039567,70]
[421745812,1778092249000,-151.0,0.00039567,30]
[421745813,1778092249000,-151.0,0.00039567,30]
[421745815,1778092249000,-151.0,0.00039567,30]
[421745810,1778092249000,-151.0,0.00039567,30]
[421745847,1778092249000,-151.0,0.00039567,30]
[421745851,1778092249000,-151.0,0.00039567,30]
[421745838,1778092249000,-156.113544,0.00039567,30]
[421745859,1778092249000,-151.0,0.00039567,30]
[421745861,1778092249000,-576.868275,0.00039567,30]
[421745869,1778092249000,-991.036506,0.00039567,28]
[421745837,1778092249000,-252.850379,0.00039567,30]
[421745872,1778092249000,-991.036506,0.00039567,28]
[421745862,1778092249000,-339.475792,0.00039567,7]
[421745871,1778092249000,-991.036506,0.00039567,28]
[421745865,1778092249000,-576.868275,0.00039567,30]
[421745867,1778092249000,-576.868275,0.00039567,30]
[421745863,1778092249000,-576.868275,0.00039567,30]
[421745866,1778092249000,-339.475792,0.00039567,7]
[421745868,1778092249000,-339.475792,0.00039567,7]
[421745864,1778092249000,-339.475792,0.00039567,7]
[421745874,1778092249000,-151.0,0.00039567,30]
[421745875,1778092249000,-39598.35531337,0.00039569,49]
[421745873,1778092249000,-151.0,0.00039567,30]
[421745876,1778092249000,-5555.02612907,0.00039569,49]
[421745860,1778092249000,-239.31926,0.00039567,30]
[421745858,1778092249000,-151.0,0.00039567,30]
[421745870,1778092249000,-991.036506,0.00039567,28]
[421745853,1778092249000,-590.652095,0.00039567,30]
[421745836,1778092249000,-518.442607,0.00039567,30]
[421745839,1778092249000,-151.0,0.00039567,30]
[421745857,1778092249000,-151.0,0.00039567,30]
[421745843,1778092249000,-151.0,0.00039567,30]
[421745842,1778092249000,-156.113544,0.00039567,30]
[421745845,1778092249000,-151.0,0.00039567,30]
[421745844,1778092249000,-156.113544,0.00039567,30]
[421745840,1778092249000,-156.113544,0.00039567,30]
[421745841,1778092249000,-151.0,0.00039567,30]
[421745848,1778092249000,-151.0,0.00039567,30]
[421745855,1778092249000,-590.652095,0.00039567,30]
[421745850,1778092249000,-151.0,0.00039567,30]
[421745852,1778092249000,-590.652095,0.00039567,30]
[421745856,1778092249000,-151.0,0.00039567,30]
[421745854,1778092249000,-590.652095,0.00039567,30]
[421745849,1778092249000,-151.0,0.00039567,30]
[421745846,1778092249000,-151.0,0.00039567,30]
[421745886,1778092250000,-506.0,0.00034479,10]
[421745887,1778092250000,-506.0,0.00035947,11]
[421745885,1778092250000,-624.0,0.00033511,2]
[421745884,1778092250000,-506.0,0.00033011,8]
[421745883,1778092250000,-506.0,0.00031542,6]
[421745881,1778092250000,-624.0,0.00030511,2]
[421745880,1778092250000,-624.0,0.00027511,2]
[421745879,1778092250000,-624.0,0.00024511,2]
[421745877,1778092250000,-152.0,0.00014689,2]
[421745878,1778092250000,-624.0,0.00021511,2]
[421745891,1778092250000,-300.0,0.00038176,2]
[421745882,1778092250000,-4962.9560269,0.00030537,2]
[421745894,1778092250000,-151.0,0.00039178,30]
[421745890,1778092250000,-506.0,0.00037416,13]
[421745888,1778092250000,-444.0,0.000361,30]
[421745904,1778092250000,-629.46882499,0.00039569,49]
[421745903,1778092250000,-152.0,0.00038686,7]
[421745902,1778092250000,-300.0,0.00038176,2]
[421745900,1778092250000,-151.0,0.00039567,30]
[421745896,1778092250000,-151.0,0.00039567,30]
[421745899,1778092250000,-624.0,0.00036511,2]
[421745889,1778092250000,-321.0,0.000361,30]
[421745898,1778092250000,-6288.17856606,0.00039569,49]
[421745897,1778092250000,-53427.84696315,0.00039569,49]
[421745892,1778092250000,-152.0,0.00038609,7]
[421745895,1778092250000,-151.0,0.00039178,30]
[421745893,1778092250000,-506.0,0.00038884,14]
[421745901,1778092250000,-225.0,0.00039569,49]
[421745905,1778092251000,-598.0,0.00039511,2]
[421745906,1778092251000,-3917.9439572,0.00039569,49]
[421745920,1778093197000,-301.90544959,0.00013398,2]
[421745944,1778093431000,-166.8,0.00018713,2]
[421745947,1778093431000,-500.0,0.00018904,2]
[421745945,1778093431000,-229.18,0.00018725,2]
[421745952,1778093431000,-1611.97,0.00019682,2]
[421745949,1778093431000,-300.0,0.00018964,2]
[421745954,1778093431000,-137.79141675,0.00019712,2]
[421745948,1778093431000,-1200.0,0.00018963,2]
[421745943,1778093431000,-2000.0,0.00018598,2]
[421745953,1778093431000,-547.35858325,0.00019712,2]
[421745950,1778093431000,-3408.99,0.00018965,2]
[421745946,1778093431000,-200.0,0.00018769,2]
[421745938,1778093431000,-192.89481167,0.00016712,2]
[421745942,1778093431000,-173.8,0.0001841,2]
[421745937,1778093431000,-173.8,0.00016438,2]
[421745935,1778093431000,-300.0,0.00014738,2]
[421745939,1778093431000,-55.00518833,0.00016712,2]
[421745941,1778093431000,-166.8,0.00017778,2]
[421745940,1778093431000,-152.0,0.00017725,2]
[421745951,1778093431000,-166.8,0.00019649,2]
[421745934,1778093431000,-250.0,0.00014738,2]
[421745932,1778093431000,-277.68870265,0.00014725,2]
[421745931,1778093431000,-168.15144076,0.00014068,2]
[421745930,1778093431000,-250.0,0.00013733,2]
[421745929,1778093431000,-198.09455041,0.00013398,2]
[421745936,1778093431000,-250.0,0.00014738,2]
[421745955,1778093431000,-4613.61907717,0.00019734,2]
[421745933,1778093431000,-300.0,0.00014738,2]
[421745956,1778093431000,-659.1457183,0.00019734,2]
[421745957,1778093431000,-952.0,0.00019734,2]
[421745984,1778093431000,-151.0,0.00020048,2]
[421745991,1778093431000,-151.0,0.00020048,2]
[421745986,1778093431000,-151.0,0.00020048,2]
[421745988,1778093431000,-151.0,0.00020048,2]
[421745982,1778093431000,-151.0,0.00020048,2]
[421745995,1778093431000,-101.06085271,0.00020048,2]
[421745981,1778093431000,-151.0,0.00020048,2]
[421745968,1778093431000,-226.0,0.0002,2]
[421745973,1778093431000,-500.0,0.00020048,2]
[421745976,1778093431000,-151.0,0.00020048,2]
[421745979,1778093431000,-151.0,0.00020048,2]
[421745993,1778093431000,-151.0,0.00020048,2]
[421745972,1778093431000,-128.35543314,0.00020047,2]
[421745969,1778093431000,-343.7238005,0.00020047,2]
[421745959,1778093431000,-196.59,0.00019776,2]
[421745964,1778093431000,-151.0,0.00019839,2]
[421745961,1778093431000,-150.0,0.00019839,2]
[421745963,1778093431000,-151.0,0.00019839,2]
[421745958,1778093431000,-38.42520453,0.00019734,2]
[421745960,1778093431000,-1852.42,0.00019824,2]
[421745962,1778093431000,-152.0,0.00019839,2]
[421745966,1778093431000,-200.0,0.00019967,2]
[421745967,1778093431000,-214.0,0.0002,2]
[421745970,1778093431000,-627.92076636,0.00020047,2]
[421745965,1778093431000,-153.12137068,0.0001996,2]
[421746075,1778093432000,-500.0,0.0002018,2]
[421746081,1778093432000,-500.0,0.0002018,2]
[421746080,1778093432000,-500.0,0.0002018,2]
[421746073,1778093432000,-500.0,0.0002018,2]
[421746059,1778093432000,-500.0,0.0002018,2]
[421746067,1778093432000,-500.0,0.0002018,2]
[421746069,1778093432000,-500.0,0.0002018,2]
[421746071,1778093432000,-500.0,0.0002018,2]
[421746057,1778093432000,-500.0,0.0002018,2]
[421746085,1778093432000,-500.0,0.0002018,2]
[421746061,1778093432000,-500.0,0.0002018,2]
[421746083,1778093432000,-500.0,0.0002018,2]
[421746106,1778093432000,-500.0,0.0002018,2]
[421746092,1778093432000,-500.0,0.0002018,2]
[421746089,1778093432000,-500.0,0.0002018,2]
[421746087,1778093432000,-500.0,0.0002018,2]
[421746091,1778093432000,-500.0,0.0002018,2]
[421746094,1778093432000,-500.0,0.0002018,2]
[421746096,1778093432000,-500.0,0.0002018,2]
[421746098,1778093432000,-500.0,0.0002018,2]
[421746102,1778093432000,-500.0,0.0002018,2]
[421746100,1778093432000,-500.0,0.0002018,2]
[421746108,1778093432000,-237.26665805,0.0002018,2]
[421746104,1778093432000,-500.0,0.0002018,2]
[421746055,1778093432000,-500.0,0.0002018,2]
[421746118,1778093432000,-757.7425248,0.00020181,2]
[421746078,1778093432000,-500.0,0.0002018,2]
[421746065,1778093432000,-500.0,0.0002018,2]
[421746038,1778093432000,-500.0,0.0002018,2]
[421746053,1778093432000,-500.0,0.0002018,2]
[421746114,1778093432000,-500.0,0.0002018,2]
[421745998,1778093432000,-49.93914729,0.00020048,2]
[421746000,1778093432000,-151.0,0.00020048,2]
[421746002,1778093432000,-151.0,0.00020048,2]
[421746006,1778093432000,-151.0,0.00020048,2]
[421746004,1778093432000,-151.0,0.00020048,2]
[421746009,1778093432000,-151.0,0.00020048,2]
[421746011,1778093432000,-151.0,0.00020048,2]
[421746013,1778093432000,-151.0,0.00020048,2]
[421746026,1778093432000,-500.0,0.0002018,2]
[421746017,1778093432000,-151.0,0.00020048,2]
[421746019,1778093432000,-151.0,0.00020048,2]
[421746063,1778093432000,-500.0,0.0002018,2]
[421746021,1778093432000,-604.74918937,0.00020096,2]
[421746023,1778093432000,-500.0,0.0002018,2]
[421746028,1778093432000,-500.0,0.0002018,2]
[421746032,1778093432000,-500.0,0.0002018,2]
[421746042,1778093432000,-500.0,0.0002018,2]
[421746036,1778093432000,-500.0,0.0002018,2]
[421746040,1778093432000,-500.0,0.0002018,2]
[421746044,1778093432000,-500.0,0.0002018,2]
[421746034,1778093432000,-500.0,0.0002018,2]
[421746030,1778093432000,-500.0,0.0002018,2]
[421746046,1778093432000,-500.0,0.0002018,2]
[421746048,1778093432000,-500.0,0.0002018,2]
[421746051,1778093432000,-500.0,0.0002018,2]
[421746015,1778093432000,-151.0,0.00020048,2]
[421746116,1778093432000,-500.0,0.0002018,2]
[421746139,1778093432000,-388.019697,0.00020181,2]
[421746112,1778093432000,-500.0,0.0002018,2]
[421746196,1778093432000,-3217.53,0.00020951,2]
[421746187,1778093432000,-356.84575663,0.000209,2]
[421746185,1778093432000,-1680.0,0.00020771,2]
[421746197,1778093432000,-1094.57,0.00020951,2]
[421746195,1778093432000,-999.99,0.00020951,2]
[421746193,1778093432000,-17187.63,0.00020951,2]
[421746188,1778093432000,-2000.0,0.00020922,2]
[421746190,1778093432000,-3789.1,0.00020951,2]
[421746192,1778093432000,-174.33,0.00020951,2]
[421746198,1778093432000,-4999.99,0.00020951,2]
[421746203,1778093432000,-226.0,0.00021,2]
[421746201,1778093432000,-9999.99,0.00020951,2]
[421746181,1778093432000,-160.0,0.00020721,2]
[421746199,1778093432000,-150.99,0.00020951,2]
[421746204,1778093432000,-419.42,0.0002103,2]
[421746202,1778093432000,-214.0,0.00021,2]
[421746208,1778093432000,-685.15,0.0002119,2]
[421746206,1778093432000,-356.84575663,0.000211,2]
[421746205,1778093432000,-1390.0,0.0002105,2]
[421746207,1778093432000,-900.0,0.00021104,2]
[421746209,1778093432000,-854.29,0.00021273,2]
[421746215,1778093432000,-4654.0205,0.0002159,2]
[421746210,1778093432000,-904.87,0.00021273,2]
[421746211,1778093432000,-356.84575663,0.000213,2]
[421746214,1778093432000,-33123.0953,0.0002159,2]
[421746212,1778093432000,-475.44,0.00021526,2]
[421746200,1778093432000,-519.75,0.00020951,2]
[421746183,1778093432000,-214.60306816,0.00020721,2]
[421746120,1778093432000,-7565.24911721,0.00020181,2]
[421746179,1778093432000,-356.84575663,0.000207,2]
[421746110,1778093432000,-500.0,0.0002018,2]
[421746122,1778093432000,-345.35317056,0.00020181,2]
[421746125,1778093432000,-507.104,0.00020181,2]
[421746127,1778093432000,-299.23478,0.00020181,2]
[421746131,1778093432000,-1763.20802313,0.00020181,2]
[421746129,1778093432000,-4600.74438523,0.00020181,2]
[421746213,1778093432000,-2842.13055102,0.00021589,2]
[421746177,1778093432000,-685.15,0.00020698,2]
[421746145,1778093432000,-150.0,0.00020196,2]
[421746143,1778093432000,-13357.73438163,0.00020181,2]
[421746147,1778093432000,-685.15,0.00020205,2]
[421746134,1778093432000,-9293.7297478,0.00020181,2]
[421746136,1778093432000,-243386.92741856,0.00020181,2]
[421746141,1778093432000,-13115.57825408,0.00020181,2]
[421746149,1778093432000,-500.0,0.0002028,2]
[421746151,1778093432000,-500.0,0.0002028,2]
[421746159,1778093432000,-341.98318047,0.0002028,2]
[421746174,1778093432000,-420.0,0.00020671,2]
[421746161,1778093432000,-150.0,0.0002028,2]
[421746170,1778093432000,-500.0,0.00020322,2]
[421746163,1778093432000,-150.0,0.0002028,2]
[421746172,1778093432000,-173.8,0.00020381,2]
[421746155,1778093432000,-162.8529983,0.0002028,2]
[421746157,1778093432000,-259.03524446,0.0002028,2]
[421746167,1778093432000,-35548.9918,0.00020281,2]
[421746153,1778093432000,-301.48667405,0.0002028,2]
[421746165,1778093432000,-150.0,0.0002028,2]
[421746168,1778093432000,-500.0,0.000203,2]
[421746258,1778093433000,-1000.0,0.00024658,2]
[421746252,1778093433000,-10000.0,0.000239,2]
[421746257,1778093433000,-823.0,0.00024561,2]
[421746253,1778093433000,-214.0,0.00024,2]
[421746250,1778093433000,-2000.0,0.00023247,2]
[421746247,1778093433000,-214.0,0.00023,2]
[421746248,1778093433000,-226.0,0.00023,2]
[421746255,1778093433000,-173.8,0.00024324,2]
[421746254,1778093433000,-226.0,0.00024,2]
[421746256,1778093433000,-151.0,0.00024508,7]
[421746251,1778093433000,-2842.13055093,0.00023578,2]
[421746249,1778093433000,-166.15,0.00023031,2]
[421746272,1778093433000,-2000.0,0.000258,2]
[421746260,1778093433000,-186.23,0.00024658,2]
[421746266,1778093433000,-174.88803,0.0002536,14]
[421746267,1778093433000,-2842.13055093,0.00025568,2]
[421746271,1778093433000,-904.87,0.00025786,2]
[421746269,1778093433000,-604.74918934,0.00025754,2]
[421746268,1778093433000,-2000.0,0.00025572,2]
[421746270,1778093433000,-854.29,0.00025786,2]
[421746264,1778093433000,-228.0,0.00025,2]
[421746265,1778093433000,-174.88803,0.0002536,14]
[421746261,1778093433000,-188.93,0.00024658,2]
[421746262,1778093433000,-3292.0,0.0002492,2]
[421746263,1778093433000,-223.91143372,0.00025,2]
[421746246,1778093433000,-604.74918934,0.00022925,2]
[421746259,1778093433000,-167.21,0.00024658,2]
[421746244,1778093433000,-417.0,0.00022878,2]
[421746228,1778093433000,-645.7,0.00021757,2]
[421746240,1778093433000,-150.0,0.00022878,2]
[421746273,1778093433000,-3536.0,0.00025878,2]
[421746217,1778093433000,-356.84575663,0.000216,2]
[421746220,1778093433000,-500.0,0.00021689,2]
[421746218,1778093433000,-685.15,0.00021683,2]
[421746219,1778093433000,-2317.31426788,0.00021689,2]
[421746221,1778093433000,-500.0,0.00021689,2]
[421746229,1778093433000,-5000.0,0.00021918,2]
[421746233,1778093433000,-900.0,0.00022474,2]
[421746231,1778093433000,-226.0,0.00022,2]
[421746222,1778093433000,-500.0,0.00021689,2]
[421746232,1778093433000,-173.8,0.00022353,2]
[421746230,1778093433000,-214.0,0.00022,2]
[421746243,1778093433000,-275.0,0.00022878,2]
[421746227,1778093433000,-3008.48,0.00021757,2]
[421746224,1778093433000,-207.52775141,0.00021689,2]
[421746225,1778093433000,-1625.78,0.00021757,2]
[421746226,1778093433000,-3203.48,0.00021757,2]
[421746234,1778093433000,-587.0,0.00022532,2]
[421746236,1778093433000,-3536.0,0.00022878,2]
[421746237,1778093433000,-598.0,0.00022878,2]
[421746235,1778093433000,-2351.0,0.00022751,2]
[421746238,1778093433000,-1352.0,0.00022878,2]
[421746245,1778093433000,-173.908,0.00022878,2]
[421746241,1778093433000,-150.0,0.00022878,2]
[421746242,1778093433000,-250.0,0.00022878,2]
[421746239,1778093433000,-925.0,0.00022878,2]
[421746223,1778093433000,-500.0,0.00021689,2]
[421746283,1778093433000,-166.15,0.00026832,2]
[421746216,1778093433000,-2500.0,0.0002159,2]
[421746274,1778093433000,-1352.0,0.00025878,2]
[421746308,1778093433000,-200.0,0.0002913,7]
[421746309,1778093433000,-5000.0,0.00029132,2]
[421746318,1778093433000,-500.8580237,0.000296,5]
[421746317,1778093433000,-500.55322451,0.000296,5]
[421746310,1778093433000,-186.24,0.00029232,7]
[421746316,1778093433000,-500.0,0.000296,5]
[421746313,1778093433000,-200.0,0.0002953,20]
[421746311,1778093433000,-188.93,0.00029232,7]
[421746312,1778093433000,-200.0,0.0002933,7]
[421746314,1778093433000,-150.0,0.00029534,2]
[421746315,1778093433000,-2842.13055093,0.00029547,2]
[421746322,1778093433000,-202.40402599,0.0002973,7]
[421746319,1778093433000,-500.0,0.000296,5]
[421746324,1778093433000,-500.0,0.00030022,5]
[421746330,1778093433000,-173.8,0.00030239,2]
[421746321,1778093433000,-501.42645095,0.000296,5]
[421746323,1778093433000,-500.0,0.00030022,2]
[421746320,1778093433000,-168.13490684,0.000296,5]
[421746328,1778093433000,-188.93,0.00030136,30]
[421746327,1778093433000,-186.24,0.00030136,30]
[421746325,1778093433000,-500.0,0.00030022,5]
[421746326,1778093433000,-186.92,0.00030136,30]
[421746332,1778093433000,-150.0,0.00031011,2]
[421746331,1778093433000,-506.0,0.00030783,6]
[421746334,1778093433000,-158.0,0.00031205,30]
[421746333,1778093433000,-160.0,0.00031205,30]
[421746276,1778093433000,-150.0,0.00025878,2]
[421746299,1778093433000,-500.0,0.00028453,7]
[421746298,1778093433000,-173.8,0.00028267,2]
[421746329,1778093433000,-167.21,0.00030137,2]
[421746307,1778093433000,-506.0,0.0002896,4]
[421746297,1778093433000,-2000.0,0.00027896,2]
[421746277,1778093433000,-417.0,0.00025878,2]
[421746275,1778093433000,-925.0,0.00025878,2]
[421746281,1778093433000,-173.8,0.00026296,2]
[421746282,1778093433000,-253.0,0.00026773,2]
[421746280,1778093433000,-159.61374998,0.0002628,2]
[421746279,1778093433000,-229.18,0.00026215,2]
[421746285,1778093433000,-506.0,0.00027137,2]
[421746294,1778093433000,-2842.13055093,0.00027557,2]